{"text_format":"3","workbook":"xlsx","n_sheets":1,"sheets":["Budget uden indtjening"],"not_rendered":{"charts":2,"images":1,"defined_names":1},"read":"whole","date_system":"1900"}

{"sheet":"Budget uden indtjening","index":0,"n_rows":40,"n_cols":7,"rows_kept":40,"merged":[[16,1,16,6],[21,1,21,5]]}
[null,"Budget uden indtjening",{"$nulls":3},"REGNSKABSÅR",2012]
{"$rows_empty":7}
[null,null,{"$f":"CONCATENATE(\"Regnskabsår \",Regnskabsår-1)","v":"Regnskabsår 2011"},{"$f":"CONCATENATE(\"Regnskabsår \",Regnskabsår)","v":"Regnskabsår 2012"},{"$f":"CONCATENATE(\"Regnskabsår \",Regnskabsår)","v":"Regnskabsår 2012"},{"$f":"CONCATENATE(\"Regnskabsår \",Regnskabsår)","v":"Regnskabsår 2012"},{"$f":"CONCATENATE(\"Regnskabsår \",Regnskabsår)","v":"Regnskabsår 2012"}]
[null,"OMSÆTNING","ÅRET FØR","FORESLÅET","FAKTISK","VARIANS","+/- ÅRET FØR"]
[null,"Fundraisers og arrangementer",{"v":150000,"d":"150000.00"},{"v":200000,"d":"200000.00"},{"v":180000,"d":"180000.00"},{"$f":"OmsætningTabel[[#This Row],[FAKTISK]]-OmsætningTabel[[#This Row],[FORESLÅET]]","v":{"v":-20000,"d":"-20000.00 "}},{"$f":"OmsætningTabel[[#This Row],[FAKTISK]]-OmsætningTabel[[#This Row],[ÅRET FØR]]","v":{"v":30000,"d":"30000.00"}}]
[null,"Fundament",{"v":50000,"d":"50000.00"},{"v":50000,"d":"50000.00"},{"v":50000,"d":"50000.00"},{"$f":"OmsætningTabel[[#This Row],[FAKTISK]]-OmsætningTabel[[#This Row],[FORESLÅET]]","v":{"v":0,"d":"0.00"}},{"$f":"OmsætningTabel[[#This Row],[FAKTISK]]-OmsætningTabel[[#This Row],[ÅRET FØR]]","v":{"v":0,"d":"0.00"}}]
[null,"Donationer",{"v":30000,"d":"30000.00"},{"v":40000,"d":"40000.00"},{"v":20000,"d":"20000.00"},{"$f":"OmsætningTabel[[#This Row],[FAKTISK]]-OmsætningTabel[[#This Row],[FORESLÅET]]","v":{"v":-20000,"d":"-20000.00"}},{"$f":"OmsætningTabel[[#This Row],[FAKTISK]]-OmsætningTabel[[#This Row],[ÅRET FØR]]","v":{"v":-10000,"d":"-10000.00"}}]
[null,"Renteindtægter",{"$nulls":3},{"$f":"OmsætningTabel[[#This Row],[FAKTISK]]-OmsætningTabel[[#This Row],[FORESLÅET]]","v":{"v":0,"d":"0.00"}},{"$f":"OmsætningTabel[[#This Row],[FAKTISK]]-OmsætningTabel[[#This Row],[ÅRET FØR]]","v":{"v":0,"d":"0.00"}}]
[null,"Diverse",{"$nulls":3},{"$f":"OmsætningTabel[[#This Row],[FAKTISK]]-OmsætningTabel[[#This Row],[FORESLÅET]]","v":{"v":0,"d":"0.00"}},{"$f":"OmsætningTabel[[#This Row],[FAKTISK]]-OmsætningTabel[[#This Row],[ÅRET FØR]]","v":{"v":0,"d":"0.00"}}]
[null,"TOTALER",{"$f":"SUBTOTAL(109,OmsætningTabel[ÅRET FØR])","v":{"v":230000,"d":"kr. 230,000.00"}},{"$f":"SUBTOTAL(109,OmsætningTabel[FORESLÅET])","v":{"v":290000,"d":"kr. 290,000.00"}},{"$f":"SUBTOTAL(109,OmsætningTabel[FAKTISK])","v":{"v":250000,"d":"kr. 250,000.00"}},{"$f":"SUBTOTAL(109,OmsætningTabel[VARIANS])","v":{"v":-40000,"d":"-kr. 40,000.00"}},{"$f":"SUBTOTAL(105,OmsætningTabel[+/- ÅRET FØR])","v":{"v":-10000,"d":"-kr. 10,000.00"}}]
{"$rows_empty":8}
[null,null,{"$f":"CONCATENATE(\"Regnskabsår \",Regnskabsår-1)","v":"Regnskabsår 2011"},{"$f":"CONCATENATE(\"Regnskabsår \",Regnskabsår)","v":"Regnskabsår 2012"},{"$f":"CONCATENATE(\"Regnskabsår \",Regnskabsår)","v":"Regnskabsår 2012"},{"$f":"CONCATENATE(\"Regnskabsår \",Regnskabsår)","v":"Regnskabsår 2012"},{"$f":"CONCATENATE(\"Regnskabsår \",Regnskabsår)","v":"Regnskabsår 2012"}]
[null,"UDGIFTER","ÅRET FØR","FORESLÅET","FAKTISK","VARIANS","+/- ÅRET FØR"]
[null,"Løn",{"v":15000,"d":"15,000.00"},{"v":30000,"d":"30,000.00"},{"v":30000,"d":"30,000.00"},{"$f":"UdgifterTabel[[#This Row],[FAKTISK]]-UdgifterTabel[[#This Row],[FORESLÅET]]","v":{"v":0,"d":"0.00"}},{"$f":"UdgifterTabel[[#This Row],[FAKTISK]]-UdgifterTabel[[#This Row],[ÅRET FØR]]","v":{"v":15000,"d":"15,000.00"}}]
[null,"Fordele",{"v":5000,"d":"5,000.00"},{"v":7500,"d":"7,500.00"},{"v":7800,"d":"7,800.00"},{"$f":"UdgifterTabel[[#This Row],[FAKTISK]]-UdgifterTabel[[#This Row],[FORESLÅET]]","v":{"v":300,"d":"300.00"}},{"$f":"UdgifterTabel[[#This Row],[FAKTISK]]-UdgifterTabel[[#This Row],[ÅRET FØR]]","v":{"v":2800,"d":"2,800.00"}}]
[null,"Leje",{"v":6000,"d":"6,000.00"},{"v":6000,"d":"6,000.00"},{"v":6000,"d":"6,000.00"},{"$f":"UdgifterTabel[[#This Row],[FAKTISK]]-UdgifterTabel[[#This Row],[FORESLÅET]]","v":{"v":0,"d":"0.00"}},{"$f":"UdgifterTabel[[#This Row],[FAKTISK]]-UdgifterTabel[[#This Row],[ÅRET FØR]]","v":{"v":0,"d":"0.00"}}]
[null,"Forsyningsværker",{"v":1000,"d":"1,000.00"},{"v":1200,"d":"1,200.00"},{"v":1150,"d":"1,150.00"},{"$f":"UdgifterTabel[[#This Row],[FAKTISK]]-UdgifterTabel[[#This Row],[FORESLÅET]]","v":{"v":-50,"d":"(50.00)"}},{"$f":"UdgifterTabel[[#This Row],[FAKTISK]]-UdgifterTabel[[#This Row],[ÅRET FØR]]","v":{"v":150,"d":"150.00"}}]
[null,"Rejser og møder",{"v":2500,"d":"2,500.00"},{"v":2000,"d":"2,000.00"},{"v":2800,"d":"2,800.00"},{"$f":"UdgifterTabel[[#This Row],[FAKTISK]]-UdgifterTabel[[#This Row],[FORESLÅET]]","v":{"v":800,"d":"800.00"}},{"$f":"UdgifterTabel[[#This Row],[FAKTISK]]-UdgifterTabel[[#This Row],[ÅRET FØR]]","v":{"v":300,"d":"300.00"}}]
[null,"Erhvervsmæssige gebyrer",{"$nulls":3},{"$f":"UdgifterTabel[[#This Row],[FAKTISK]]-UdgifterTabel[[#This Row],[FORESLÅET]]","v":{"v":0,"d":"0.00"}},{"$f":"UdgifterTabel[[#This Row],[FAKTISK]]-UdgifterTabel[[#This Row],[ÅRET FØR]]","v":{"v":0,"d":"0.00"}}]
[null,"Marketing/reklame",{"$nulls":3},{"$f":"UdgifterTabel[[#This Row],[FAKTISK]]-UdgifterTabel[[#This Row],[FORESLÅET]]","v":{"v":0,"d":"0.00"}},{"$f":"UdgifterTabel[[#This Row],[FAKTISK]]-UdgifterTabel[[#This Row],[ÅRET FØR]]","v":{"v":0,"d":"0.00"}}]
[null,"Forsikring",{"$nulls":3},{"$f":"UdgifterTabel[[#This Row],[FAKTISK]]-UdgifterTabel[[#This Row],[FORESLÅET]]","v":{"v":0,"d":"0.00"}},{"$f":"UdgifterTabel[[#This Row],[FAKTISK]]-UdgifterTabel[[#This Row],[ÅRET FØR]]","v":{"v":0,"d":"0.00"}}]
[null,"Telefon",{"$nulls":3},{"$f":"UdgifterTabel[[#This Row],[FAKTISK]]-UdgifterTabel[[#This Row],[FORESLÅET]]","v":{"v":0,"d":"0.00"}},{"$f":"UdgifterTabel[[#This Row],[FAKTISK]]-UdgifterTabel[[#This Row],[ÅRET FØR]]","v":{"v":0,"d":"0.00"}}]
[null,"Internetgebyrer (websted, mødested osv.)",{"$nulls":3},{"$f":"UdgifterTabel[[#This Row],[FAKTISK]]-UdgifterTabel[[#This Row],[FORESLÅET]]","v":{"v":0,"d":"0.00"}},{"$f":"UdgifterTabel[[#This Row],[FAKTISK]]-UdgifterTabel[[#This Row],[ÅRET FØR]]","v":{"v":0,"d":"0.00"}}]
[null,"Udstyr",{"$nulls":3},{"$f":"UdgifterTabel[[#This Row],[FAKTISK]]-UdgifterTabel[[#This Row],[FORESLÅET]]","v":{"v":0,"d":"0.00"}},{"$f":"UdgifterTabel[[#This Row],[FAKTISK]]-UdgifterTabel[[#This Row],[ÅRET FØR]]","v":{"v":0,"d":"0.00"}}]
[null,"Forsyninger",{"$nulls":3},{"$f":"UdgifterTabel[[#This Row],[FAKTISK]]-UdgifterTabel[[#This Row],[FORESLÅET]]","v":{"v":0,"d":"0.00"}},{"$f":"UdgifterTabel[[#This Row],[FAKTISK]]-UdgifterTabel[[#This Row],[ÅRET FØR]]","v":{"v":0,"d":"0.00"}}]
[null,"Porto",{"$nulls":3},{"$f":"UdgifterTabel[[#This Row],[FAKTISK]]-UdgifterTabel[[#This Row],[FORESLÅET]]","v":{"v":0,"d":"0.00"}},{"$f":"UdgifterTabel[[#This Row],[FAKTISK]]-UdgifterTabel[[#This Row],[ÅRET FØR]]","v":{"v":0,"d":"0.00"}}]
[null,"TOTALER",{"$f":"SUBTOTAL(109,UdgifterTabel[ÅRET FØR])","v":{"v":29500,"d":"kr. 29,500.00"}},{"$f":"SUBTOTAL(109,UdgifterTabel[FORESLÅET])","v":{"v":46700,"d":"kr. 46,700.00"}},{"$f":"SUBTOTAL(109,UdgifterTabel[FAKTISK])","v":{"v":47750,"d":"kr. 47,750.00"}},{"$f":"SUBTOTAL(109,UdgifterTabel[VARIANS])","v":{"v":1050,"d":"kr. 1,050.00"}},{"$f":"SUBTOTAL(109,UdgifterTabel[+/- ÅRET FØR])","v":{"v":18250,"d":"kr. 18,250.00"}}]